[Event "Nordic Chess-ch 2019"]
[Site "Sarpsborg"]
[Date "2019.06.24"]
[Round "5.16"]
[White "Rishovd, Svein"]
[Black "Schouten, Mathias Lind"]
[Result "1-0"]
[ECO "B52"]
[WhiteElo "2113"]
[BlackElo "1967"]
[Annotator "NA"]
[PlyCount "131"]
[EventDate "2019.06.21"]
[EventType "swiss"]
[EventCountry "NOR"]
[SourceTitle "playchess.com"]
[Source "ChessBase"]
[SourceQuality "1"]
[TimeControl "40/5400+30:1800+30"]

1. Nf3 {[%emt 0:00:00]} c5 {[%emt 0:00:00]} 2. e4 {[%emt 0:00:00]} d6 {[%emt 0:00:04]} 3. Bb5+ {[%emt 0:00:00]} Bd7 {[%emt 0:00:06]} 4. Bxd7+ {[%emt 0:00:00]} Qxd7 {[%emt 0:00:04]} 5. c4 {[%emt 0:00:40]} Nc6 {[%emt 0:02:54]} 6. d4 {[%emt 0:00:11]} cxd4 {[%emt 0:01:23]} 7. Nxd4 {[%emt 0:00:07]} g6 {[%emt 0:00:39]} 8. Nc3 {[%emt 0:00:48]} Bg7 {[%emt 0:00:32]} 9. Be3 {[%emt 0:00:10]} Nf6 {[%emt 0:03:18]} 10. f3 {[%emt 0:00:28]} O-O {[%emt 0:01:28]} 11. O-O {[%emt 0:00:35]} Rac8 {[%emt 0:01:34]} 12. b3 {[%emt 0:01:07]} a6 {[%emt 0:00:22]} 13. Qd3 {[%emt 0:16:35]} Rfd8 {[%emt 0:12:23]} 14. Rac1 {[%emt 0:01:38]} e6 {[%emt 0:06:11]} 15. Na4 {[%emt 0:08:34]} Qc7 {[%emt 0:08:57]} 16. Ne2 {[%emt 0:05:48]} Nd7 {[%emt 0:01:07]} 17. Qb1 {[%emt 0:10:14]} b6 {[%emt 0:20:10]} 18. Rfd1 {[%emt 0:11:05]} Nc5 {[%emt 0:06:53]} 19. Nac3 {[%emt 0:00:25]} Qb8 {[%emt 0:02:19]} 20. f4 {[%emt 0:18:54]} b5 {[%emt 0:05:58]} 21. cxb5 {[%emt 0:03:32]} axb5 {[%emt 0:00:06]} 22. e5 {[%emt 0:00:12]} b4 {[%emt 0:01:32]} 23. Bxc5 {[%emt 0:02:10]} dxc5 {[%emt 0:01:14]} 24. Ne4 {[%emt 0:02:37]} Bf8 {[%emt 0:03:23]} 25. Nf6+ {[%emt 0:05:40]} Kh8 {[%emt 0:00:13]} 26. Qe4 {[%emt 0:00:26]} Nd4 {[%emt 0:05:58]} 27. Ng3 {[%emt 0:02:23]} Qa8 {[%emt 0:03:43]} 28. Qb1 {[%emt 0:05:34]} Bh6 {[%emt 0:07:26]} 29. Rf1 {[%emt 0:01:05]} Qa7 {[%emt 0:01:42]} 30. Kh1 {[%emt 0:00:33]} Bf8 {[%emt 0:01:17]} 31. Nge4 {[%emt 0:02:16]} Nb5 {[%emt 0:00:35]} 32. h4 {[%emt 0:00:35]} Na3 {[%emt 0:00:18]} 33. Qb2 {[%emt 0:00:14]} c4 {[%emt 0:00:16]} 34. bxc4 {[%emt 0:00:16]} Nxc4 {[%emt 0:00:12]} 35. Qe2 {[%emt 0:00:22]} Ne3 {[%emt 0:00:42]} 36. Rxc8 {[%emt 0:01:52]} Rxc8 {[%emt 0:00:04]} 37. Re1 {[%emt 0:00:24]} Nf5 {[%emt 0:01:04]} 38. h5 {[%emt 0:00:12]} Ra8 {[%emt 0:01:50]} 39. hxg6 {[%emt 0:00:24]} fxg6 {[%emt 0:00:04]} 40. g4 {[%emt 0:00:21]} Nd4 {[%emt 0:01:17]} 41. Qf2 {[%emt 0:08:03]} Rc8 {[%emt 0:09:48]} 42. Rd1 {[%emt 0:02:27]} Rd8 {[%emt 0:03:35]} 43. Nd6 {[%emt 0:06:01]} Bxd6 {[%emt 0:00:07]} 44. Qxd4 {[%emt 0:00:18]} Qxd4 {[%emt 0:01:24]} 45. Rxd4 {[%emt 0:00:09]} Be7 {[%emt 0:00:08]} 46. Rxd8+ {[%emt 0:01:07]} Bxd8 {[%emt 0:00:08]} 47. Ne4 {[%emt 0:02:48]} Be7 {[%emt 0:00:10]} 48. g5 {[%emt 0:02:50]} Kg7 {[%emt 0:01:20]} 49. Kg2 {[%emt 0:00:05]} h6 {[%emt 0:01:25]} 50. gxh6+ {[%emt 0:00:26]} Kxh6 {[%emt 0:00:32]} 51. Kg3 {[%emt 0:04:34]} Kg7 {[%emt 0:11:10]} 52. Ng5 {[%emt 0:02:14]} Bf6 {[%emt 0:03:47]} 53. exf6+ {[%emt 0:01:18]} Kxf6 {[%emt 0:00:05]} 54. Ne4+ {[%emt 0:00:16]} Kf5 {[%emt 0:00:32]} 55. Nd6+ {[%emt 0:00:06]} Kf6 {[%emt 0:00:04]} 56. Nc4 {[%emt 0:01:41]} g5 {[%emt 0:02:53]} 57. fxg5+ {[%emt 0:00:16]} Kxg5 {[%emt 0:00:04]} 58. Kf3 {[%emt 0:00:16]} Kf5 {[%emt 0:00:05]} 59. Ke3 {[%emt 0:00:04]} e5 {[%emt 0:00:11]} 60. Nd2 {[%emt 0:00:31]} Ke6 {[%emt 0:00:17]} 61. Ke4 {[%emt 0:00:47]} Kd6 {[%emt 0:00:09]} 62. Nb3 {[%emt 0:00:48]} Ke6 {[%emt 0:01:06]} 63. Nc5+ {[%emt 0:00:34]} Kd6 {[%emt 0:00:20]} 64. Nd3 {[%emt 0:00:20]} Kc6 {[%emt 0:00:03]} 65. Nxb4+ {[%emt 0:00:07]} Kb5 {[%emt 0:00:04]} 66. Nc2 {[%emt 0:00:33]} 1-0

[Event "Nordic Chess-ch 2019"]
[Site "Sarpsborg"]
[Date "2019.06.24"]
[Round "5.17"]
[White "Johansen, Torbjorn Reidar"]
[Black "Wahlund, Max"]
[Result "0-1"]
[ECO "B32"]
[WhiteElo "1754"]
[BlackElo "2103"]
[Annotator "NA"]
[PlyCount "88"]
[EventDate "2019.06.21"]
[EventType "swiss"]
[EventCountry "NOR"]
[SourceTitle "playchess.com"]
[Source "ChessBase"]
[SourceQuality "1"]
[TimeControl "40/5400+30:1800+30"]

1. e4 {[%emt 0:00:00]} c5 {[%emt 0:04:47]} 2. Nf3 {[%emt 0:00:00]} Nc6 {[%emt 0:00:02]} 3. d4 {[%emt 0:00:05]} cxd4 {[%emt 0:00:03]} 4. Nxd4 {[%emt 0:00:08]} e5 {[%emt 0:00:04]} 5. Nb5 {[%emt 0:03:02]} d6 {[%emt 0:00:03]} 6. N1c3 {[%emt 0:01:08]} a6 {[%emt 0:00:04]} 7. Na3 {[%emt 0:00:11]} Be7 {[%emt 0:00:05]} 8. Nd5 {[%emt 0:00:05]} Nf6 {[%emt 0:02:24]} 9. Nxe7 {[%emt 0:02:54]} Qxe7 {[%emt 0:01:00]} 10. Bg5 {[%emt 0:00:42]} O-O {[%emt 0:00:58]} 11. Nc4 {[%emt 0:03:24]} h6 {[%emt 0:13:24]} 12. Nb6 {[%emt 0:17:24]} hxg5 {[%emt 0:00:34]} 13. Nxa8 {[%emt 0:00:06]} Qd8 {[%emt 0:08:26]} 14. f3 {[%emt 0:05:59]} Be6 {[%emt 0:00:33]} 15. Qd2 {[%emt 0:03:56]} Qxa8 {[%emt 0:01:50]} 16. h4 {[%emt 0:05:39]} g4 {[%emt 0:00:37]} 17. h5 {[%emt 0:01:04]} Nh7 {[%emt 0:06:45]} 18. Be2 {[%emt 0:05:40]} Qd8 {[%emt 0:01:01]} 19. O-O-O {[%emt 0:06:17]} Qg5 {[%emt 0:00:59]} 20. fxg4 {[%emt 0:00:32]} Nd4 {[%emt 0:01:49]} 21. Bf3 {[%emt 0:02:35]} Rc8 {[%emt 0:01:08]} 22. Kb1 {[%emt 0:06:31]} Nxc2 {[%emt 0:05:41]} 23. Qxd6 {[%emt 0:06:57]} Nd4 {[%emt 0:01:26]} 24. Qb6 {[%emt 0:05:55]} Qd8 {[%emt 0:08:31]} 25. Qxd8+ {[%emt 0:04:07]} Rxd8 {[%emt 0:00:02]} 26. Rc1 {[%emt 0:00:38]} Ng5 {[%emt 0:00:54]} 27. Rhf1 {[%emt 0:00:46]} Rc8 {[%emt 0:01:13]} 28. Rce1 {[%emt 0:05:18]} Bc4 {[%emt 0:01:22]} 29. Rf2 {[%emt 0:00:08]} Bd3+ {[%emt 0:00:15]} 30. Ka1 {[%emt 0:02:25]} Nc2+ {[%emt 0:00:05]} 31. Rxc2 {[%emt 0:00:07]} Rxc2 {[%emt 0:00:10]} 32. b3 {[%emt 0:04:56]} Rd2 {[%emt 0:03:02]} 33. Re3 {[%emt 0:02:05]} Ne6 {[%emt 0:00:15]} 34. Re1 {[%emt 0:03:11]} Nd4 {[%emt 0:00:06]} 35. Rg1 {[%emt 0:01:44]} b5 {[%emt 0:01:28]} 36. Rc1 {[%emt 0:00:45]} b4 {[%emt 0:01:48]} 37. g5 {[%emt 0:00:32]} Nb5 {[%emt 0:00:16]} 38. Rd1 {[%emt 0:01:00]} Rxd1+ {[%emt 0:01:11]} 39. Bxd1 {[%emt 0:00:06]} Bxe4 {[%emt 0:00:10]} 40. g3 {[%emt 0:01:58]} Nc3 {[%emt 0:01:00]} 41. Bg4 {[%emt 0:29:53]} Bb1 {[%emt 0:31:15]} 42. Kb2 {[%emt 0:00:00]} Bxa2 {[%emt 0:00:00]} 43. Bf5 {[%emt 0:00:00]} e4 {[%emt 0:00:00]} 44. g4 {[%emt 0:00:00]} Bb1 {[%emt 0:35:14]} 0-1

[Event "Nordic Chess-ch 2019"]
[Site "Sarpsborg"]
[Date "2019.06.24"]
[Round "5.18"]
[White "Johansen, Kolbjorn-Albin"]
[Black "Fernandez, Juan Pablo"]
[Result "1/2-1/2"]
[ECO "D00"]
[WhiteElo "1690"]
[BlackElo "2066"]
[Annotator "NA"]
[PlyCount "38"]
[EventDate "2019.06.21"]
[EventType "swiss"]
[EventCountry "NOR"]
[SourceTitle "playchess.com"]
[Source "ChessBase"]
[SourceQuality "1"]
[TimeControl "40/5400+30:1800+30"]

1. d4 {[%emt 0:00:00]} Nf6 {[%emt 0:00:00]} 2. Bf4 {[%emt 0:00:00]} d5 {[%emt 0:00:06]} 3. e3 {[%emt 0:00:03]} e6 {[%emt 0:01:08]} 4. Nd2 {[%emt 0:00:28]} c5 {[%emt 0:01:22]} 5. c3 {[%emt 0:00:14]} Bd6 {[%emt 0:04:39]} 6. Bg3 {[%emt 0:00:17]} a6 {[%emt 0:03:50]} 7. Ngf3 {[%emt 0:02:47]} Nc6 {[%emt 0:03:34]} 8. Bd3 {[%emt 0:00:46]} c4 {[%emt 0:03:22]} 9. Bc2 {[%emt 0:00:17]} b5 {[%emt 0:10:46]} 10. e4 {[%emt 0:05:58]} Nxe4 {[%emt 0:02:00]} 11. Nxe4 {[%emt 0:00:50]} dxe4 {[%emt 0:00:06]} 12. Bxe4 {[%emt 0:00:13]} Bb7 {[%emt 0:02:12]} 13. Qe2 {[%emt 0:05:34]} O-O {[%emt 0:03:27]} 14. O-O {[%emt 0:07:16]} Bxg3 {[%emt 0:08:26]} 15. hxg3 {[%emt 0:00:55]} Qe7 {[%emt 0:05:07]} 16. Rfe1 {[%emt 0:09:53]} Rae8 {[%emt 0:02:26]} 17. Rad1 {[%emt 0:06:49]} g6 {[%emt 0:10:28]} 18. Bxc6 {[%emt 0:21:33]} Bxc6 {[%emt 0:00:07]} 19. d5 {[%emt 0:00:15]} Ba8 {[%emt 0:04:13]} 1/2-1/2

[Event "Nordic Chess-ch 2019"]
[Site "Sarpsborg"]
[Date "2019.06.24"]
[Round "5.19"]
[White "Tunsjo, Axel"]
[Black "Stabbetorp, Jon Anders"]
[Result "1-0"]
[ECO "C54"]
[WhiteElo "2002"]
[BlackElo "1817"]
[Annotator "NA"]
[PlyCount "83"]
[EventDate "2019.06.21"]
[EventType "swiss"]
[EventCountry "NOR"]
[SourceTitle "playchess.com"]
[Source "ChessBase"]
[SourceQuality "1"]
[TimeControl "40/5400+30:1800+30"]

1. e4 {[%emt 0:00:00]} e5 {[%emt 0:11:27]} 2. Nf3 {[%emt 0:00:41]} Nc6 {[%emt 0:00:08]} 3. Bc4 {[%emt 0:00:11]} Bc5 {[%emt 0:00:10]} 4. O-O {[%emt 0:00:14]} Nf6 {[%emt 0:00:09]} 5. d3 {[%emt 0:01:08]} h6 {[%emt 0:00:20]} 6. c3 {[%emt 0:01:00]} a6 {[%emt 0:00:17]} 7. d4 {[%emt 0:02:21]} exd4 {[%emt 0:00:31]} 8. cxd4 {[%emt 0:00:09]} Ba7 {[%emt 0:01:56]} 9. e5 {[%emt 0:00:36]} Ng4 {[%emt 0:06:59]} 10. h3 {[%emt 0:03:13]} h5 {[%emt 0:00:06]} 11. Bg5 {[%emt 0:23:33]} f6 {[%emt 0:00:08]} 12. exf6 {[%emt 0:00:24]} gxf6 {[%emt 0:09:37]} 13. Qd3 {[%emt 0:02:20]} d5 {[%emt 0:01:26]} 14. Qg6+ {[%emt 0:01:05]} Kf8 {[%emt 0:00:23]} 15. hxg4 {[%emt 0:01:33]} fxg5 {[%emt 0:29:09]} 16. Nxg5 {[%emt 0:00:20]} Qe7 {[%emt 0:00:14]} 17. Nc3 {[%emt 0:04:38]} Bxg4 {[%emt 0:07:08]} 18. Rae1 {[%emt 0:00:43]} Qg7 {[%emt 0:03:06]} 19. Qxg7+ {[%emt 0:11:31]} Kxg7 {[%emt 0:00:08]} 20. Nxd5 {[%emt 0:01:12]} Rac8 {[%emt 0:04:24]} 21. f3 {[%emt 0:17:52]} Nxd4 {[%emt 0:03:52]} 22. Kh2 {[%emt 0:01:02]} Bf5 {[%emt 0:06:20]} 23. Ne7 {[%emt 0:02:59]} Rce8 {[%emt 0:01:07]} 24. Nxf5+ {[%emt 0:10:13]} Nxf5 {[%emt 0:00:10]} 25. Ne6+ {[%emt 0:04:37]} Kf6 {[%emt 0:00:16]} 26. Nf4 {[%emt 0:04:19]} c6 {[%emt 0:04:25]} 27. Rxe8 {[%emt 0:01:24]} Rxe8 {[%emt 0:00:07]} 28. Nxh5+ {[%emt 0:01:41]} Kg5 {[%emt 0:00:07]} 29. g4 {[%emt 0:00:23]} Ne3 {[%emt 0:01:03]} 30. Rc1 {[%emt 0:00:16]} Nxc4 {[%emt 0:00:21]} 31. Rxc4 {[%emt 0:00:03]} Re2+ {[%emt 0:00:30]} 32. Kg3 {[%emt 0:00:10]} Rxb2 {[%emt 0:02:59]} 33. f4+ {[%emt 0:00:15]} Kg6 {[%emt 0:00:36]} 34. Re4 {[%emt 0:03:17]} Rxa2 {[%emt 0:07:21]} 35. Re6+ {[%emt 0:00:09]} Kf7 {[%emt 0:00:00]} 36. Rf6+ {[%emt 0:00:17]} Kg8 {[%emt 0:00:00]} 37. g5 {[%emt 0:00:13]} Bd4 {[%emt 0:00:00]} 38. Rd6 {[%emt 0:00:12]} c5 {[%emt 0:00:00]} 39. g6 {[%emt 0:00:55]} Bg7 {[%emt 0:00:00]} 40. Rd7 {[%emt 0:00:32]} Bf8 {[%emt 0:00:37]} 41. Nf6+ {[%emt 0:30:06]} Kh8 {[%emt 0:30:15]} 42. Rh7# {[%emt 0:00:03]} 1-0

[Event "Nordic Chess-ch 2019"]
[Site "Sarpsborg"]
[Date "2019.06.24"]
[Round "5.20"]
[White "Strand, Vetle Bjorge"]
[Black "Nilsen, Tobias Lang"]
[Result "0-1"]
[ECO "E20"]
[WhiteElo "1609"]
[BlackElo "1986"]
[Annotator "NA"]
[PlyCount "70"]
[EventDate "2019.06.21"]
[EventType "swiss"]
[EventCountry "NOR"]
[SourceTitle "playchess.com"]
[Source "ChessBase"]
[SourceQuality "1"]
[TimeControl "40/5400+30:1800+30"]

1. d4 {[%emt 0:00:00]} Nf6 {[%emt 0:00:00]} 2. c4 {[%emt 0:00:00]} e6 {[%emt 0:00:00]} 3. Nc3 {[%emt 0:00:00]} Bb4 {[%emt 0:00:07]} 4. Bf4 {[%emt 0:00:05]} O-O {[%emt 0:02:10]} 5. e3 {[%emt 0:00:26]} d6 {[%emt 0:01:41]} 6. Nf3 {[%emt 0:00:28]} Qe7 {[%emt 0:01:52]} 7. Be2 {[%emt 0:01:15]} Nbd7 {[%emt 0:00:24]} 8. O-O {[%emt 0:01:27]} e5 {[%emt 0:02:32]} 9. dxe5 {[%emt 0:01:01]} dxe5 {[%emt 0:00:08]} 10. Bg3 {[%emt 0:00:41]} Bxc3 {[%emt 0:02:33]} 11. bxc3 {[%emt 0:00:06]} Ne4 {[%emt 0:00:22]} 12. Qc2 {[%emt 0:01:28]} f5 {[%emt 0:00:10]} 13. Nd2 {[%emt 0:17:19]} Nd6 {[%emt 0:18:46]} 14. f3 {[%emt 0:08:17]} Nc5 {[%emt 0:09:18]} 15. Nb3 {[%emt 0:09:09]} b6 {[%emt 0:08:27]} 16. Nxc5 {[%emt 0:07:43]} bxc5 {[%emt 0:00:06]} 17. Bf2 {[%emt 0:05:49]} e4 {[%emt 0:03:38]} 18. Rab1 {[%emt 0:22:33]} Be6 {[%emt 0:04:11]} 19. Qa4 {[%emt 0:02:48]} Qf7 {[%emt 0:00:52]} 20. fxe4 {[%emt 0:09:55]} Nxe4 {[%emt 0:00:09]} 21. Rfc1 {[%emt 0:02:34]} Rad8 {[%emt 0:08:54]} 22. Be1 {[%emt 0:00:56]} f4 {[%emt 0:00:56]} 23. exf4 {[%emt 0:04:04]} Qxf4 {[%emt 0:00:22]} 24. Bf3 {[%emt 0:00:14]} Qe3+ {[%emt 0:00:22]} 25. Kh1 {[%emt 0:00:15]} Rxf3 {[%emt 0:00:23]} 26. Bh4 {[%emt 0:01:34]} Nf2+ {[%emt 0:00:21]} 27. Bxf2 {[%emt 0:00:16]} Rxf2 {[%emt 0:00:07]} 28. Qxa7 {[%emt 0:01:21]} Qg5 {[%emt 0:00:27]} 29. Rg1 {[%emt 0:00:47]} Qe5 {[%emt 0:01:35]} 30. Rbe1 {[%emt 0:00:23]} Qd6 {[%emt 0:00:21]} 31. Qa4 {[%emt 0:00:37]} Bd7 {[%emt 0:01:03]} 32. Qb3 {[%emt 0:00:14]} Bc6 {[%emt 0:00:18]} 33. Rd1 {[%emt 0:00:26]} Bxg2+ {[%emt 0:00:19]} 34. Rxg2 {[%emt 0:00:15]} Qxd1+ {[%emt 0:00:07]} 35. Qxd1 {[%emt 0:00:06]} Rxd1+ {[%emt 0:00:05]} 0-1

[Event "Nordic Chess-ch 2019"]
[Site "Sarpsborg"]
[Date "2019.06.24"]
[Round "5.21"]
[White "Unneland, Mathias"]
[Black "Jashari, Driton"]
[Result "1/2-1/2"]
[ECO "D38"]
[WhiteElo "1980"]
[BlackElo "1755"]
[Annotator "NA"]
[PlyCount "65"]
[EventDate "2019.06.21"]
[EventType "swiss"]
[EventCountry "NOR"]
[SourceTitle "playchess.com"]
[Source "ChessBase"]
[SourceQuality "1"]
[TimeControl "40/5400+30:1800+30"]

1. d4 {[%emt 0:00:00]} d5 {[%emt 0:01:50]} 2. c4 {[%emt 0:00:00]} e6 {[%emt 0:00:34]} 3. Nf3 {[%emt 0:00:00]} Nf6 {[%emt 0:00:28]} 4. Nc3 {[%emt 0:00:00]} Bb4 {[%emt 0:00:03]} 5. Qa4+ {[%emt 0:00:57]} Nc6 {[%emt 0:00:07]} 6. e3 {[%emt 0:00:06]} O-O {[%emt 0:02:38]} 7. Bd3 {[%emt 0:00:57]} a6 {[%emt 0:00:24]} 8. O-O {[%emt 0:01:19]} Bxc3 {[%emt 0:00:13]} 9. bxc3 {[%emt 0:00:14]} Bd7 {[%emt 0:00:11]} 10. Qc2 {[%emt 0:00:17]} Ne7 {[%emt 0:04:27]} 11. Ba3 {[%emt 0:03:14]} dxc4 {[%emt 0:00:08]} 12. Bxc4 {[%emt 0:00:08]} Bb5 {[%emt 0:01:08]} 13. Ne5 {[%emt 0:01:58]} Re8 {[%emt 0:00:19]} 14. Rab1 {[%emt 0:05:41]} Bxc4 {[%emt 0:01:33]} 15. Nxc4 {[%emt 0:00:08]} b5 {[%emt 0:01:54]} 16. Ne5 {[%emt 0:03:06]} Ng6 {[%emt 0:00:03]} 17. f4 {[%emt 0:03:32]} Qd5 {[%emt 0:00:48]} 18. Rbc1 {[%emt 0:05:15]} Qe4 {[%emt 0:00:33]} 19. Ng4 {[%emt 0:30:46]} Qxc2 {[%emt 0:02:19]} 20. Nxf6+ {[%emt 0:00:08]} gxf6 {[%emt 0:00:14]} 21. Rxc2 {[%emt 0:00:04]} f5 {[%emt 0:00:56]} 22. c4 {[%emt 0:02:08]} c6 {[%emt 0:00:17]} 23. Rfc1 {[%emt 0:01:55]} Reb8 {[%emt 0:00:07]} 24. Bd6 {[%emt 0:05:35]} Rd8 {[%emt 0:00:28]} 25. Bc7 {[%emt 0:00:25]} Rd7 {[%emt 0:00:59]} 26. Ba5 {[%emt 0:00:16]} h5 {[%emt 0:05:34]} 27. a3 {[%emt 0:00:34]} h4 {[%emt 0:00:30]} 28. Kf2 {[%emt 0:01:30]} Kg7 {[%emt 0:03:05]} 29. cxb5 {[%emt 0:18:41]} cxb5 {[%emt 0:05:40]} 30. Rc7 {[%emt 0:01:02]} Ra7 {[%emt 0:00:13]} 31. Rxd7 {[%emt 0:00:43]} Rxd7 {[%emt 0:00:01]} 32. Rc6 {[%emt 0:00:11]} Ra7 {[%emt 0:00:12]} 33. Bb6 {[%emt 0:02:38]} 1/2-1/2

[Event "Nordic Chess-ch 2019"]
[Site "Sarpsborg"]
[Date "2019.06.24"]
[Round "5.22"]
[White "Ptacnikova, Lenka"]
[Black "Holand, Per Fredrik"]
[Result "1-0"]
[ECO "E19"]
[WhiteElo "2145"]
[BlackElo "1883"]
[Annotator "NA"]
[PlyCount "67"]
[EventDate "2019.06.21"]
[EventType "swiss"]
[EventCountry "NOR"]
[SourceTitle "playchess.com"]
[Source "ChessBase"]
[SourceQuality "1"]
[TimeControl "40/5400+30:1800+30"]

1. Nf3 {[%emt 0:00:00]} Nf6 {[%emt 0:00:30]} 2. g3 {[%emt 0:00:00]} b6 {[%emt 0:05:12]} 3. Bg2 {[%emt 0:00:00]} Bb7 {[%emt 0:00:07]} 4. O-O {[%emt 0:00:15]} e6 {[%emt 0:01:50]} 5. c4 {[%emt 0:04:54]} Be7 {[%emt 0:01:09]} 6. Nc3 {[%emt 0:02:37]} O-O {[%emt 0:00:42]} 7. d4 {[%emt 0:01:16]} Ne4 {[%emt 0:05:12]} 8. Qc2 {[%emt 0:04:55]} Nxc3 {[%emt 0:00:55]} 9. Qxc3 {[%emt 0:00:19]} f5 {[%emt 0:03:51]} 10. b3 {[%emt 0:05:02]} d6 {[%emt 0:01:37]} 11. Bb2 {[%emt 0:00:29]} Nd7 {[%emt 0:01:20]} 12. Rfd1 {[%emt 0:11:58]} Qe8 {[%emt 0:02:33]} 13. d5 {[%emt 0:03:29]} e5 {[%emt 0:04:38]} 14. b4 {[%emt 0:06:11]} a5 {[%emt 0:17:54]} 15. a3 {[%emt 0:00:29]} Bf6 {[%emt 0:09:04]} 16. e4 {[%emt 0:01:48]} f4 {[%emt 0:03:04]} 17. Bh3 {[%emt 0:10:09]} Bc8 {[%emt 0:04:17]} 18. Be6+ {[%emt 0:00:22]} Kh8 {[%emt 0:00:07]} 19. Kg2 {[%emt 0:00:17]} g6 {[%emt 0:04:10]} 20. Rdc1 {[%emt 0:03:30]} Bg7 {[%emt 0:00:23]} 21. Qd3 {[%emt 0:01:02]} Nf6 {[%emt 0:00:58]} 22. Bxc8 {[%emt 0:00:36]} Qxc8 {[%emt 0:00:16]} 23. h3 {[%emt 0:00:47]} fxg3 {[%emt 0:07:22]} 24. fxg3 {[%emt 0:00:11]} Bh6 {[%emt 0:00:50]} 25. Rf1 {[%emt 0:00:33]} c5 {[%emt 0:01:04]} 26. Bc3 {[%emt 0:17:00]} a4 {[%emt 0:11:13]} 27. Ra2 {[%emt 0:05:22]} Nh5 {[%emt 0:01:32]} 28. Raf2 {[%emt 0:02:17]} Bf4 {[%emt 0:01:33]} 29. Nxe5 {[%emt 0:06:24]} dxe5 {[%emt 0:01:07]} 30. gxf4 {[%emt 0:00:18]} Kg8 {[%emt 0:02:16]} 31. Bxe5 {[%emt 0:01:56]} cxb4 {[%emt 0:00:09]} 32. axb4 {[%emt 0:04:00]} Qd8 {[%emt 0:00:26]} 33. c5 {[%emt 0:01:13]} Qh4 {[%emt 0:00:33]} 34. d6 {[%emt 0:07:21]} 1-0

[Event "Nordic Chess-ch 2019"]
[Site "Sarpsborg"]
[Date "2019.06.24"]
[Round "5.23"]
[White "Tenold, Andreas"]
[Black "Stellas, Dimitrios"]
[Result "0-1"]
[ECO "B12"]
[WhiteElo "1959"]
[BlackElo "1976"]
[Annotator "NA"]
[PlyCount "76"]
[EventDate "2019.06.21"]
[EventType "swiss"]
[EventCountry "NOR"]
[SourceTitle "playchess.com"]
[Source "ChessBase"]
[SourceQuality "1"]
[TimeControl "40/5400+30:1800+30"]

1. e4 {[%emt 0:00:22]} c6 {[%emt 0:00:13]} 2. d4 {[%emt 0:00:13]} d5 {[%emt 0:00:02]} 3. e5 {[%emt 0:00:09]} Bf5 {[%emt 0:00:20]} 4. h4 {[%emt 0:01:03]} h5 {[%emt 0:00:46]} 5. Bd3 {[%emt 0:00:23]} Bxd3 {[%emt 0:00:31]} 6. Qxd3 {[%emt 0:00:07]} e6 {[%emt 0:00:26]} 7. Bg5 {[%emt 0:02:03]} Qb6 {[%emt 0:03:44]} 8. b3 {[%emt 0:17:44]} Ne7 {[%emt 0:04:14]} 9. Ne2 {[%emt 0:04:57]} Nf5 {[%emt 0:01:51]} 10. O-O {[%emt 0:03:19]} Qa6 {[%emt 0:02:10]} 11. Qd2 {[%emt 0:06:34]} Nd7 {[%emt 0:03:46]} 12. Ng3 {[%emt 0:04:22]} g6 {[%emt 0:03:30]} 13. Nxf5 {[%emt 0:01:00]} gxf5 {[%emt 0:01:33]} 14. Rc1 {[%emt 0:08:57]} Nb6 {[%emt 0:15:01]} 15. a4 {[%emt 0:10:49]} Kd7 {[%emt 0:16:37]} 16. Na3 {[%emt 0:02:58]} Nc8 {[%emt 0:02:52]} 17. c4 {[%emt 0:05:40]} Ne7 {[%emt 0:03:14]} 18. c5 {[%emt 0:11:42]} b6 {[%emt 0:04:19]} 19. b4 {[%emt 0:01:39]} Rc8 {[%emt 0:10:55]} 20. b5 {[%emt 0:02:43]} Qb7 {[%emt 0:01:33]} 21. a5 {[%emt 0:02:49]} cxb5 {[%emt 0:02:55]} 22. axb6 {[%emt 0:02:27]} Nc6 {[%emt 0:04:09]} 23. bxa7 {[%emt 0:02:52]} Be7 {[%emt 0:05:55]} 24. Bxe7 {[%emt 0:01:40]} Kxe7 {[%emt 0:00:37]} 25. Rcb1 {[%emt 0:02:32]} Nxa7 {[%emt 0:01:04]} 26. Qb4 {[%emt 0:01:11]} Nc6 {[%emt 0:02:35]} 27. Qxb5 {[%emt 0:00:07]} Qxb5 {[%emt 0:01:25]} 28. Nxb5 {[%emt 0:00:02]} Ra8 {[%emt 0:00:29]} 29. Na7 {[%emt 0:02:37]} Nxd4 {[%emt 0:00:51]} 30. c6 {[%emt 0:00:52]} Kf8 {[%emt 0:02:54]} 31. c7 {[%emt 0:00:52]} Kg7 {[%emt 0:00:16]} 32. Ra4 {[%emt 0:00:44]} Ne2+ {[%emt 0:00:31]} 33. Kf1 {[%emt 0:00:27]} Nc3 {[%emt 0:00:14]} 34. Rc1 {[%emt 0:00:32]} Nxa4 {[%emt 0:00:36]} 35. c8=Q {[%emt 0:00:10]} Rhxc8 {[%emt 0:01:04]} 36. Nxc8 {[%emt 0:00:06]} Nb2 {[%emt 0:01:09]} 37. Rb1 {[%emt 0:01:14]} Nc4 {[%emt 0:00:53]} 38. Nd6 {[%emt 0:00:30]} Nd2+ {[%emt 0:00:14]} 0-1

[Event "Nordic Chess-ch 2019"]
[Site "Sarpsborg"]
[Date "2019.06.24"]
[Round "5.24"]
[White "Dingertz, Erik"]
[Black "Pettersen, Morgan Buckholm"]
[Result "1-0"]
[ECO "E04"]
[WhiteElo "1969"]
[BlackElo "1508"]
[Annotator "NA"]
[PlyCount "49"]
[EventDate "2019.06.21"]
[EventType "swiss"]
[EventCountry "NOR"]
[SourceTitle "playchess.com"]
[Source "ChessBase"]
[SourceQuality "1"]
[TimeControl "40/5400+30:1800+30"]

1. c4 {[%emt 0:00:00]} c6 {[%emt 0:00:00]} 2. g3 {[%emt 0:00:00]} d5 {[%emt 0:01:13]} 3. Bg2 {[%emt 0:00:00]} Nf6 {[%emt 0:00:43]} 4. Nf3 {[%emt 0:00:06]} e6 {[%emt 0:04:32]} 5. O-O {[%emt 0:01:55]} Nbd7 {[%emt 0:02:26]} 6. d4 {[%emt 0:06:13]} dxc4 {[%emt 0:03:55]} 7. a4 {[%emt 0:01:08]} a5 {[%emt 0:03:24]} 8. Na3 {[%emt 0:01:34]} Nb6 {[%emt 0:04:12]} 9. Qc2 {[%emt 0:00:57]} Bb4 {[%emt 0:06:58]} 10. Rd1 {[%emt 0:04:07]} Qe7 {[%emt 0:04:44]} 11. e4 {[%emt 0:04:11]} h6 {[%emt 0:05:43]} 12. Ne5 {[%emt 0:02:37]} O-O {[%emt 0:06:01]} 13. Naxc4 {[%emt 0:01:48]} Nxc4 {[%emt 0:00:08]} 14. Qxc4 {[%emt 0:01:45]} Rd8 {[%emt 0:02:48]} 15. Bd2 {[%emt 0:04:02]} c5 {[%emt 0:06:38]} 16. Bxb4 {[%emt 0:01:39]} axb4 {[%emt 0:00:19]} 17. Qxc5 {[%emt 0:02:54]} Qxc5 {[%emt 0:01:04]} 18. dxc5 {[%emt 0:00:05]} Bd7 {[%emt 0:00:51]} 19. b3 {[%emt 0:00:18]} Bc6 {[%emt 0:00:55]} 20. Nxc6 {[%emt 0:00:47]} bxc6 {[%emt 0:00:05]} 21. Kf1 {[%emt 0:00:54]} Nd7 {[%emt 0:01:21]} 22. Rac1 {[%emt 0:03:07]} e5 {[%emt 0:02:21]} 23. Rd6 {[%emt 0:01:24]} Rac8 {[%emt 0:00:15]} 24. Rcd1 {[%emt 0:00:03]} Rc7 {[%emt 0:00:41]} 25. Bh3 {[%emt 0:00:03]} 1-0